[Event "Titled Tuesday Blitz June 6 Late 2023"]
[White "Santos Flores, Alberto"]
[Black "Mendez Fortes, Eduardo Jesus"]
[WhiteFideId "3601234"]
[BlackFideId "3502376"]
[WhiteElo "2235"]
[BlackElo "2307"]
[Result "1-0"]
[Round "8"]
[TimeControl "180+2"]
[Date "2023.06.07"]
[WhiteClock "0:02:18"]
[BlackClock "0:02:11"]
[Board "59"]

1. e4 {[%clk 0:03:00]}  c5 {[%clk 0:02:59]} 2. Nf3 {[%clk 0:03:01]}  d6 {[%clk 0:03:00]} 3. Bb5+ {[%clk 0:02:59]}  Nd7 {[%clk 0:02:59]} 4. d4 {[%clk 0:02:59]}  cxd4 {[%clk 0:02:59]} 5. Qxd4 {[%clk 0:03:00]}  a6 {[%clk 0:02:59]} 6. Bxd7+ {[%clk 0:03:00]}  Bxd7 {[%clk 0:03:00]} 7. Nc3 {[%clk 0:03:00]}  Rc8 {[%clk 0:02:55]} 8. Bg5 {[%clk 0:02:59]}  h6 {[%clk 0:02:55]} 9. Bh4 {[%clk 0:02:59]}  f6 {[%clk 0:02:51]} 10. O-O-O {[%clk 0:02:55]}  e5 {[%clk 0:02:46]} 11. Qd3 {[%clk 0:02:50]}  Be6 {[%clk 0:02:39]} 12. Kb1 {[%clk 0:02:49]}  Rc6 {[%clk 0:02:30]} 13. Nxe5 {[%clk 0:02:42]}  Rxc3 {[%clk 0:02:22]} 14. Qxc3 {[%clk 0:02:38]}  g5 {[%clk 0:02:22]} 15. Ng6 {[%clk 0:02:32]}  gxh4 {[%clk 0:02:18]} 16. Nxh8 {[%clk 0:02:31]}  Bg7 {[%clk 0:02:17]} 17. Ng6 {[%clk 0:02:30]}  Qd7 {[%clk 0:02:12]} 18. Nf4 {[%clk 0:02:27]}  Bf7 {[%clk 0:02:11]} 19. Nd5 {[%clk 0:02:24]}  Ne7 {[%clk 0:02:11]} 20. Nxf6+ {[%clk 0:02:18]} 1-0


[Site "https://www.chess.com"]

[Event "Titled Tuesday Blitz June 6 Late 2023"]
[White "Harish, Neeraj"]
[Black "Streltsov, Alexey"]
[WhiteFideId "30958130"]
[BlackFideId "24104434"]
[WhiteElo "1879"]
[BlackElo "2569"]
[Result "0-1"]
[Round "8"]
[TimeControl "180+2"]
[Date "2023.06.07"]
[WhiteClock "0:00:01"]
[BlackClock "0:00:18"]
[Board "63"]

1. e4 {[%clk 0:03:00]}  c6 {[%clk 0:03:00]} 2. d4 {[%clk 0:03:00]}  d5 {[%clk 0:03:01]} 3. e5 {[%clk 0:03:00]}  Bf5 {[%clk 0:03:00]} 4. Nd2 {[%clk 0:02:59]}  e6 {[%clk 0:02:59]} 5. Nb3 {[%clk 0:03:00]}  Nd7 {[%clk 0:03:00]} 6. Nf3 {[%clk 0:03:00]}  c5 {[%clk 0:03:01]} 7. dxc5 {[%clk 0:02:56]}  Bxc5 {[%clk 0:03:02]} 8. Nxc5 {[%clk 0:02:54]}  Nxc5 {[%clk 0:03:03]} 9. Bb5+ {[%clk 0:02:46]}  Nd7 {[%clk 0:03:03]} 10. O-O {[%clk 0:02:47]}  Ne7 {[%clk 0:03:03]} 11. c3 {[%clk 0:02:39]}  Nc6 {[%clk 0:03:00]} 12. Re1 {[%clk 0:02:34]}  O-O {[%clk 0:02:56]} 13. Bf4 {[%clk 0:02:23]}  Qb6 {[%clk 0:02:45]} 14. Qe2 {[%clk 0:01:29]}  a6 {[%clk 0:02:37]} 15. Bxc6 {[%clk 0:01:22]}  bxc6 {[%clk 0:02:37]} 16. Nd4 {[%clk 0:01:18]}  Be4 {[%clk 0:02:36]} 17. f3 {[%clk 0:01:15]}  Bg6 {[%clk 0:02:35]} 18. Kh1 {[%clk 0:01:04]}  c5 {[%clk 0:02:30]} 19. Nb3 {[%clk 0:01:04]}  Rfb8 {[%clk 0:02:29]} 20. Be3 {[%clk 0:00:48]}  Qb5 {[%clk 0:02:27]} 21. f4 {[%clk 0:00:37]}  c4 {[%clk 0:02:20]} 22. Nd4 {[%clk 0:00:33]}  Qxb2 {[%clk 0:02:20]} 23. Nc6 {[%clk 0:00:25]}  Qxe2 {[%clk 0:01:54]} 24. Rxe2 {[%clk 0:00:22]}  Rb7 {[%clk 0:01:55]} 25. Ne7+ {[%clk 0:00:18]}  Kf8 {[%clk 0:01:55]} 26. Nxg6+ {[%clk 0:00:19]}  hxg6 {[%clk 0:01:56]} 27. Bd4 {[%clk 0:00:18]}  Rab8 {[%clk 0:01:55]} 28. h3 {[%clk 0:00:18]}  Rb2 {[%clk 0:01:50]} 29. Rae1 {[%clk 0:00:18]}  Ke7 {[%clk 0:01:46]} 30. g4 {[%clk 0:00:14]}  Rxe2 {[%clk 0:01:42]} 31. Rxe2 {[%clk 0:00:15]}  Rb1+ {[%clk 0:01:42]} 32. Kg2 {[%clk 0:00:15]}  Nb8 {[%clk 0:01:43]} 33. Bc5+ {[%clk 0:00:15]}  Kd7 {[%clk 0:01:43]} 34. Bf8 {[%clk 0:00:14]}  Rc1 {[%clk 0:01:39]} 35. Rb2 {[%clk 0:00:14]}  Kc8 {[%clk 0:01:36]} 36. Bxg7 {[%clk 0:00:09]}  Rxc3 {[%clk 0:01:35]} 37. h4 {[%clk 0:00:09]}  d4 {[%clk 0:01:27]} 38. h5 {[%clk 0:00:09]}  d3 {[%clk 0:01:27]} 39. Rf2 {[%clk 0:00:07]}  gxh5 {[%clk 0:01:16]} 40. gxh5 {[%clk 0:00:06]}  Rc2 {[%clk 0:00:34]} 41. h6 {[%clk 0:00:06]}  d2 {[%clk 0:00:34]} 42. h7 {[%clk 0:00:06]}  d1=Q {[%clk 0:00:33]} 43. h8=Q+ {[%clk 0:00:07]}  Kb7 {[%clk 0:00:33]} 44. Rxc2 {[%clk 0:00:04]}  Qxc2+ {[%clk 0:00:34]} 45. Kg3 {[%clk 0:00:04]}  Qg6+ {[%clk 0:00:27]} 46. Kf3 {[%clk 0:00:04]}  c3 {[%clk 0:00:27]} 47. Bf6 {[%clk 0:00:02]}  Qd3+ {[%clk 0:00:23]} 48. Kg4 {[%clk 0:00:01]}  Qe2+ {[%clk 0:00:22]} 49. Kg5 {[%clk 0:00:01]}  Qg2+ {[%clk 0:00:21]} 50. Kh5 {[%clk 0:00:01]}  c2 {[%clk 0:00:18]} 0-1


[Site "https://www.chess.com"]

[Event "Titled Tuesday Blitz June 6 Late 2023"]
[White "Kashtanov, Ruslan"]
[Black "ATM622"]
[WhiteFideId "4124871"]
[WhiteElo "2263"]
[BlackElo "2584"]
[Result "0-1"]
[Round "8"]
[TimeControl "180+2"]
[Date "2023.06.07"]
[WhiteClock "0:00:02"]
[BlackClock "0:01:41"]
[Board "66"]

1. d4 {[%clk 0:02:55]}  Nf6 {[%clk 0:02:59]} 2. c4 {[%clk 0:02:56]}  e6 {[%clk 0:02:58]} 3. g3 {[%clk 0:02:56]}  d5 {[%clk 0:02:57]} 4. Bg2 {[%clk 0:02:56]}  dxc4 {[%clk 0:02:57]} 5. Qa4+ {[%clk 0:02:52]}  Nbd7 {[%clk 0:02:54]} 6. Nf3 {[%clk 0:02:44]}  a6 {[%clk 0:02:50]} 7. Nc3 {[%clk 0:02:42]}  c5 {[%clk 0:02:47]} 8. O-O {[%clk 0:02:22]}  Be7 {[%clk 0:02:44]} 9. dxc5 {[%clk 0:02:18]}  Bxc5 {[%clk 0:02:42]} 10. Qxc4 {[%clk 0:01:39]}  b5 {[%clk 0:02:39]} 11. Qh4 {[%clk 0:01:38]}  Bb7 {[%clk 0:02:37]} 12. b4 {[%clk 0:01:32]}  Be7 {[%clk 0:02:34]} 13. Bg5 {[%clk 0:01:31]}  h6 {[%clk 0:02:33]} 14. Rac1 {[%clk 0:01:04]}  O-O {[%clk 0:02:27]} 15. Rfd1 {[%clk 0:00:27]}  hxg5 {[%clk 0:02:21]} 16. Nxg5 {[%clk 0:00:27]}  Bxg2 {[%clk 0:02:20]} 17. Kxg2 {[%clk 0:00:26]}  a5 {[%clk 0:02:02]} 18. Nce4 {[%clk 0:00:21]}  Re8 {[%clk 0:01:53]} 19. Nxf6+ {[%clk 0:00:12]}  Bxf6 {[%clk 0:01:53]} 20. Qh7+ {[%clk 0:00:12]}  Kf8 {[%clk 0:01:53]} 21. Ne4 {[%clk 0:00:09]}  Ke7 {[%clk 0:01:49]} 22. Nxf6 {[%clk 0:00:04]}  gxf6 {[%clk 0:01:48]} 23. Qe4 {[%clk 0:00:03]}  Rc8 {[%clk 0:01:44]} 24. Qb7 {[%clk 0:00:02]}  Rxc1 {[%clk 0:01:40]} 25. Rxc1 {[%clk 0:00:02]}  Qa8 {[%clk 0:01:41]} 0-1


[Site "https://www.chess.com"]

[Event "Titled Tuesday Blitz June 6 Late 2023"]
[White "Shohat, Yotam"]
[Black "Przybylski, Wojciech"]
[WhiteFideId "2813955"]
[BlackFideId "1117599"]
[WhiteElo "2226"]
[BlackElo "2228"]
[Result "0-1"]
[Round "8"]
[TimeControl "180+2"]
[Date "2023.06.07"]
[WhiteClock "0:00:01"]
[BlackClock "0:00:03"]
[Board "68"]

1. e4 {[%clk 0:02:45]}  e5 {[%clk 0:02:59]} 2. Nf3 {[%clk 0:02:44]}  Nf6 {[%clk 0:02:58]} 3. Nc3 {[%clk 0:02:44]}  Bb4 {[%clk 0:02:57]} 4. Nxe5 {[%clk 0:02:40]}  O-O {[%clk 0:02:56]} 5. d4 {[%clk 0:02:27]}  Nxe4 {[%clk 0:02:54]} 6. Bd3 {[%clk 0:02:26]}  Nxc3 {[%clk 0:02:52]} 7. Qh5 {[%clk 0:02:26]}  Ne4+ {[%clk 0:02:43]} 8. c3 {[%clk 0:02:26]}  Nf6 {[%clk 0:02:42]} 9. Qh4 {[%clk 0:02:19]}  d6 {[%clk 0:02:39]} 10. Bg5 {[%clk 0:02:14]}  h6 {[%clk 0:02:31]} 11. Nf3 {[%clk 0:01:50]}  Re8+ {[%clk 0:02:29]} 12. Kf1 {[%clk 0:01:50]}  hxg5 {[%clk 0:02:13]} 13. Nxg5 {[%clk 0:01:50]}  Bg4 {[%clk 0:01:26]} 14. Bh7+ {[%clk 0:01:44]}  Kf8 {[%clk 0:01:25]} 15. Bd3 {[%clk 0:01:35]}  Bh5 {[%clk 0:01:18]} 16. g4 {[%clk 0:01:27]}  Bg6 {[%clk 0:01:14]} 17. Qh8+ {[%clk 0:01:11]}  Ng8 {[%clk 0:01:13]} 18. Bxg6 {[%clk 0:01:01]}  fxg6 {[%clk 0:00:45]} 19. h4 {[%clk 0:01:01]}  Qd7 {[%clk 0:00:26]} 20. Rh3 {[%clk 0:00:52]}  Ke7 {[%clk 0:00:24]} 21. Re1+ {[%clk 0:00:42]}  Kd8 {[%clk 0:00:23]} 22. Rxe8+ {[%clk 0:00:40]}  Qxe8 {[%clk 0:00:22]} 23. Qxg7 {[%clk 0:00:40]}  d5 {[%clk 0:00:17]} 24. cxb4 {[%clk 0:00:36]}  Nc6 {[%clk 0:00:16]} 25. Re3 {[%clk 0:00:34]}  Nce7 {[%clk 0:00:15]} 26. Rf3 {[%clk 0:00:17]}  Kd7 {[%clk 0:00:14]} 27. Qe5 {[%clk 0:00:15]}  c6 {[%clk 0:00:10]} 28. Rf7 {[%clk 0:00:13]}  Kc8 {[%clk 0:00:05]} 29. Qe6+ {[%clk 0:00:13]}  Kc7 {[%clk 0:00:04]} 30. h5 {[%clk 0:00:12]}  gxh5 {[%clk 0:00:04]} 31. gxh5 {[%clk 0:00:13]}  Qd7 {[%clk 0:00:03]} 32. Qf6 {[%clk 0:00:12]}  Qd6 {[%clk 0:00:03]} 33. Ne6+ {[%clk 0:00:09]}  Kb6 {[%clk 0:00:03]} 34. Qe5 {[%clk 0:00:03]}  Qxe5 {[%clk 0:00:03]} 35. dxe5 {[%clk 0:00:04]}  Re8 {[%clk 0:00:01]} 36. Ng7 {[%clk 0:00:04]}  Rd8 {[%clk 0:00:01]} 37. e6 {[%clk 0:00:04]}  d4 {[%clk 0:00:01]} 38. Ke2 {[%clk 0:00:04]}  d3+ {[%clk 0:00:01]} 39. Kd2 {[%clk 0:00:05]}  Rd5 {[%clk 0:00:01]} 40. Rf3 {[%clk 0:00:05]}  Re5 {[%clk 0:00:01]} 41. Rxd3 {[%clk 0:00:05]}  Rg5 {[%clk 0:00:02]} 42. Ne8 {[%clk 0:00:05]}  Rxh5 {[%clk 0:00:01]} 43. Nd6 {[%clk 0:00:05]}  Rg5 {[%clk 0:00:01]} 44. Nc4+ {[%clk 0:00:05]}  Kc7 {[%clk 0:00:02]} 45. Rd7+ {[%clk 0:00:05]}  Kc8 {[%clk 0:00:02]} 46. Nd6+ {[%clk 0:00:03]}  Kb8 {[%clk 0:00:02]} 47. Rxb7+ {[%clk 0:00:04]}  Ka8 {[%clk 0:00:03]} 48. Rd7 {[%clk 0:00:04]}  Rd5+ {[%clk 0:00:03]} 49. Kc3 {[%clk 0:00:04]}  a5 {[%clk 0:00:03]} 50. bxa5 {[%clk 0:00:02]}  Rc5+ {[%clk 0:00:03]} 51. Kd4 {[%clk 0:00:02]}  Rd5+ {[%clk 0:00:03]} 52. Ke4 {[%clk 0:00:02]}  Rxa5 {[%clk 0:00:02]} 53. Nc8 {[%clk 0:00:03]}  Kb8 {[%clk 0:00:03]} 54. Nb6 {[%clk 0:00:03]}  Rb5 {[%clk 0:00:03]} 55. Nc4 {[%clk 0:00:03]}  Rd5 {[%clk 0:00:03]} 56. Ne5 {[%clk 0:00:01]}  Nf6+ {[%clk 0:00:03]} 0-1


[Site "https://www.chess.com"]

[Event "Titled Tuesday Blitz June 6 Late 2023"]
[White "Graif, William"]
[Black "Krzywda, Andrzej"]
[WhiteFideId "2609835"]
[BlackFideId "1114565"]
[WhiteElo "2201"]
[BlackElo "2138"]
[Result "1-0"]
[Round "8"]
[TimeControl "180+2"]
[Date "2023.06.07"]
[WhiteClock "0:00:08"]
[BlackClock "0:00:06"]
[Board "73"]

1. e4 {[%clk 0:02:41]}  e5 {[%clk 0:03:00]} 2. Nf3 {[%clk 0:02:40]}  Nf6 {[%clk 0:03:00]} 3. d4 {[%clk 0:02:37]}  Nxe4 {[%clk 0:03:00]} 4. dxe5 {[%clk 0:02:36]}  d5 {[%clk 0:02:59]} 5. Nbd2 {[%clk 0:02:35]}  Qd7 {[%clk 0:02:59]} 6. Bd3 {[%clk 0:02:28]}  Nc5 {[%clk 0:02:58]} 7. Be2 {[%clk 0:02:26]}  Nc6 {[%clk 0:02:58]} 8. O-O {[%clk 0:01:26]}  Ne6 {[%clk 0:02:57]} 9. Nb3 {[%clk 0:01:24]}  Be7 {[%clk 0:02:50]} 10. Re1 {[%clk 0:01:16]}  O-O {[%clk 0:02:50]} 11. c3 {[%clk 0:01:12]}  Rd8 {[%clk 0:02:50]} 12. Be3 {[%clk 0:01:11]}  a5 {[%clk 0:02:46]} 13. Qd2 {[%clk 0:01:08]}  a4 {[%clk 0:02:44]} 14. Nbd4 {[%clk 0:01:04]}  Ncxd4 {[%clk 0:02:44]} 15. Nxd4 {[%clk 0:00:54]}  Nxd4 {[%clk 0:02:35]} 16. cxd4 {[%clk 0:00:55]}  Qf5 {[%clk 0:02:14]} 17. Bd3 {[%clk 0:00:55]}  Qh5 {[%clk 0:02:13]} 18. Qc2 {[%clk 0:00:50]}  c6 {[%clk 0:02:12]} 19. f4 {[%clk 0:00:45]}  f5 {[%clk 0:01:49]} 20. Rf1 {[%clk 0:00:45]}  Be6 {[%clk 0:01:48]} 21. a3 {[%clk 0:00:42]}  Qf7 {[%clk 0:01:45]} 22. g4 {[%clk 0:00:29]}  Rf8 {[%clk 0:01:42]} 23. Kh1 {[%clk 0:00:23]}  Kh8 {[%clk 0:01:41]} 24. g5 {[%clk 0:00:22]}  c5 {[%clk 0:01:23]} 25. Rf3 {[%clk 0:00:17]}  c4 {[%clk 0:01:17]} 26. Be2 {[%clk 0:00:17]}  Qe8 {[%clk 0:01:05]} 27. Rh3 {[%clk 0:00:17]}  Bf7 {[%clk 0:00:58]} 28. Rg1 {[%clk 0:00:15]}  Bg6 {[%clk 0:00:58]} 29. Bf3 {[%clk 0:00:14]}  Qc6 {[%clk 0:00:54]} 30. Qg2 {[%clk 0:00:14]}  Rad8 {[%clk 0:00:49]} 31. Bh5 {[%clk 0:00:12]}  b5 {[%clk 0:00:45]} 32. Bd2 {[%clk 0:00:11]}  Kg8 {[%clk 0:00:44]} 33. Bc3 {[%clk 0:00:11]}  Rd7 {[%clk 0:00:40]} 34. Qe2 {[%clk 0:00:11]}  Qe6 {[%clk 0:00:36]} 35. Bxg6 {[%clk 0:00:09]}  hxg6 {[%clk 0:00:33]} 36. Rh4 {[%clk 0:00:09]}  Kf7 {[%clk 0:00:34]} 37. Rg3 {[%clk 0:00:08]}  Rdd8 {[%clk 0:00:34]} 38. Rgh3 {[%clk 0:00:09]}  Rg8 {[%clk 0:00:35]} 39. Rh7 {[%clk 0:00:09]}  Rb8 {[%clk 0:00:35]} 40. Qd2 {[%clk 0:00:09]}  b4 {[%clk 0:00:30]} 41. axb4 {[%clk 0:00:08]}  Rgc8 {[%clk 0:00:23]} 42. Qe1 {[%clk 0:00:07]}  Bf8 {[%clk 0:00:23]} 43. Qa1 {[%clk 0:00:05]}  Qc6 {[%clk 0:00:22]} 44. Qa3 {[%clk 0:00:06]}  Ke6 {[%clk 0:00:21]} 45. Rh8 {[%clk 0:00:05]}  Qb5 {[%clk 0:00:20]} 46. Rg8 {[%clk 0:00:05]}  Bxb4 {[%clk 0:00:20]} 47. Bxb4 {[%clk 0:00:04]}  Qxb4 {[%clk 0:00:20]} 48. Qxb4 {[%clk 0:00:04]}  Rxb4 {[%clk 0:00:21]} 49. Rxc8 {[%clk 0:00:04]}  Rxb2 {[%clk 0:00:22]} 50. Re8+ {[%clk 0:00:05]}  Kf7 {[%clk 0:00:22]} 51. Ra8 {[%clk 0:00:05]}  Ra2 {[%clk 0:00:16]} 52. Rc3 {[%clk 0:00:05]}  Ke6 {[%clk 0:00:14]} 53. Ra6+ {[%clk 0:00:06]}  Kd7 {[%clk 0:00:15]} 54. e6+ {[%clk 0:00:06]}  Ke7 {[%clk 0:00:15]} 55. Re3 {[%clk 0:00:06]}  Rd2 {[%clk 0:00:07]} 56. Ra7+ {[%clk 0:00:07]}  Ke8 {[%clk 0:00:07]} 57. e7 {[%clk 0:00:08]}  Rxd4 {[%clk 0:00:04]} 58. Ra8+ {[%clk 0:00:09]}  Kd7 {[%clk 0:00:04]} 59. e8=Q+ {[%clk 0:00:09]}  Kd6 {[%clk 0:00:05]} 60. Re6+ {[%clk 0:00:08]}  Kc5 {[%clk 0:00:06]} 61. Qc6+ {[%clk 0:00:07]}  Kb4 {[%clk 0:00:07]} 62. Qb6+ {[%clk 0:00:07]}  Kc3 {[%clk 0:00:08]} 63. Re3+ {[%clk 0:00:08]}  Rd3 {[%clk 0:00:07]} 64. Rxd3+ {[%clk 0:00:08]}  Kxd3 {[%clk 0:00:07]} 65. Rxa4 {[%clk 0:00:08]}  c3 {[%clk 0:00:07]} 66. Qd4+ {[%clk 0:00:06]}  Kc2 {[%clk 0:00:07]} 67. Ra3 {[%clk 0:00:06]}  Kb2 {[%clk 0:00:06]} 68. Qxc3+ {[%clk 0:00:07]}  Kb1 {[%clk 0:00:06]} 69. Ra1# {[%clk 0:00:08]} 1-0


[Site "https://www.chess.com"]

[Event "Titled Tuesday Blitz June 6 Late 2023"]
[White "Pavlidou, Ekaterini"]
[Black "Barria Santos, Jose Guilherme"]
[WhiteFideId "4213262"]
[BlackFideId "1939300"]
[WhiteElo "2126"]
[BlackElo "2266"]
[Result "0-1"]
[Round "8"]
[TimeControl "180+2"]
[Date "2023.06.07"]
[WhiteClock "0:00:51"]
[BlackClock "0:01:41"]
[Board "76"]

1. d4 {[%clk 0:03:00]}  Nf6 {[%clk 0:02:58]} 2. c4 {[%clk 0:03:01]}  g6 {[%clk 0:02:58]} 3. Nc3 {[%clk 0:03:01]}  Bg7 {[%clk 0:02:58]} 4. e4 {[%clk 0:03:01]}  d6 {[%clk 0:02:58]} 5. Be2 {[%clk 0:03:02]}  O-O {[%clk 0:02:58]} 6. Be3 {[%clk 0:03:02]}  c5 {[%clk 0:02:57]} 7. d5 {[%clk 0:03:02]}  e6 {[%clk 0:02:57]} 8. h3 {[%clk 0:02:57]}  exd5 {[%clk 0:02:58]} 9. exd5 {[%clk 0:02:53]}  Re8 {[%clk 0:02:57]} 10. g4 {[%clk 0:02:48]}  a6 {[%clk 0:02:56]} 11. Bf3 {[%clk 0:02:46]}  Nbd7 {[%clk 0:02:54]} 12. Nge2 {[%clk 0:02:46]}  Ne5 {[%clk 0:02:54]} 13. Ng3 {[%clk 0:02:30]}  Nxc4 {[%clk 0:02:51]} 14. Qd3 {[%clk 0:02:26]}  Nxb2 {[%clk 0:02:44]} 15. Qe2 {[%clk 0:02:23]}  Qa5 {[%clk 0:02:32]} 16. Qxb2 {[%clk 0:02:10]}  Nxd5 {[%clk 0:02:28]} 17. O-O {[%clk 0:01:51]}  Bxc3 {[%clk 0:02:23]} 18. Qb3 {[%clk 0:01:50]}  Nxe3 {[%clk 0:02:21]} 19. fxe3 {[%clk 0:01:49]}  Be6 {[%clk 0:02:21]} 20. Bd5 {[%clk 0:01:49]}  Bxa1 {[%clk 0:02:17]} 21. Bxe6 {[%clk 0:01:44]}  fxe6 {[%clk 0:02:18]} 22. Qxb7 {[%clk 0:01:43]}  Be5 {[%clk 0:02:13]} 23. Ne4 {[%clk 0:01:37]}  Rf8 {[%clk 0:02:05]} 24. Rd1 {[%clk 0:00:59]}  Qxa2 {[%clk 0:01:52]} 25. Ng5 {[%clk 0:00:51]}  Qh2# {[%clk 0:01:41]} 0-1


[Site "https://www.chess.com"]

[Event "Titled Tuesday Blitz June 6 Late 2023"]
[White "laziestwin"]
[Black "Ozalp, Burak"]
[BlackFideId "6314210"]
[WhiteElo "2646"]
[BlackElo "2106"]
[Result "1-0"]
[Round "8"]
[TimeControl "180+2"]
[Date "2023.06.07"]
[WhiteClock "0:00:12"]
[BlackClock "0:00:08"]
[Board "79"]

1. d4 {[%clk 0:03:00]}  Nf6 {[%clk 0:02:59]} 2. c4 {[%clk 0:03:01]}  g6 {[%clk 0:03:00]} 3. Nc3 {[%clk 0:03:02]}  Bg7 {[%clk 0:03:00]} 4. e4 {[%clk 0:03:03]}  d6 {[%clk 0:03:01]} 5. Be2 {[%clk 0:03:04]}  O-O {[%clk 0:03:01]} 6. h4 {[%clk 0:03:05]}  c5 {[%clk 0:02:55]} 7. d5 {[%clk 0:03:05]}  b5 {[%clk 0:02:55]} 8. cxb5 {[%clk 0:03:05]}  a6 {[%clk 0:02:56]} 9. a4 {[%clk 0:03:04]}  axb5 {[%clk 0:02:54]} 10. Bxb5 {[%clk 0:03:04]}  Ba6 {[%clk 0:02:47]} 11. Bd2 {[%clk 0:03:00]}  Qb6 {[%clk 0:02:38]} 12. Nf3 {[%clk 0:02:54]}  Nbd7 {[%clk 0:02:14]} 13. O-O {[%clk 0:02:53]}  h5 {[%clk 0:01:53]} 14. Qe2 {[%clk 0:02:43]}  Rfb8 {[%clk 0:01:49]} 15. e5 {[%clk 0:02:28]}  Nxe5 {[%clk 0:01:46]} 16. Nxe5 {[%clk 0:02:29]}  dxe5 {[%clk 0:01:47]} 17. Qxe5 {[%clk 0:02:30]}  Ng4 {[%clk 0:01:35]} 18. Qxe7 {[%clk 0:02:21]}  Bf6 {[%clk 0:01:32]} 19. Qe4 {[%clk 0:01:58]}  Re8 {[%clk 0:01:25]} 20. Bxe8 {[%clk 0:01:57]}  Qb8 {[%clk 0:01:17]} 21. Bf4 {[%clk 0:01:44]}  Qxe8 {[%clk 0:01:13]} 22. Qxe8+ {[%clk 0:01:45]}  Rxe8 {[%clk 0:01:13]} 23. Rfe1 {[%clk 0:01:45]}  Rd8 {[%clk 0:01:10]} 24. Rad1 {[%clk 0:01:26]}  Bxh4 {[%clk 0:01:09]} 25. g3 {[%clk 0:01:25]}  Bf6 {[%clk 0:01:07]} 26. Ne4 {[%clk 0:01:15]}  Bd4 {[%clk 0:01:04]} 27. b4 {[%clk 0:01:15]}  f5 {[%clk 0:01:01]} 28. bxc5 {[%clk 0:01:15]}  Rxd5 {[%clk 0:00:57]} 29. Ng5 {[%clk 0:00:17]}  Bxf2+ {[%clk 0:00:31]} 30. Kg2 {[%clk 0:00:17]}  Rxd1 {[%clk 0:00:27]} 31. Rxd1 {[%clk 0:00:15]}  Bb7+ {[%clk 0:00:24]} 32. Kf1 {[%clk 0:00:13]}  Bxc5 {[%clk 0:00:19]} 33. Rd8+ {[%clk 0:00:12]}  Bf8 {[%clk 0:00:11]} 34. Ne6 {[%clk 0:00:12]}  Ba6+ {[%clk 0:00:12]} 35. Kg2 {[%clk 0:00:12]}  Kf7 {[%clk 0:00:12]} 36. Nxf8 {[%clk 0:00:12]}  Ke7 {[%clk 0:00:12]} 37. Bg5+ {[%clk 0:00:12]}  Kf7 {[%clk 0:00:10]} 38. Nd7 {[%clk 0:00:12]}  Bb7+ {[%clk 0:00:10]} 39. Kf1 {[%clk 0:00:12]}  f4 {[%clk 0:00:10]} 40. gxf4 {[%clk 0:00:11]}  Ne3+ {[%clk 0:00:09]} 41. Kg1 {[%clk 0:00:10]}  h4 {[%clk 0:00:08]} 42. Ne5+ {[%clk 0:00:10]}  Ke6 {[%clk 0:00:09]} 43. Bxh4 {[%clk 0:00:11]}  Kf5 {[%clk 0:00:09]} 44. Bg5 {[%clk 0:00:11]}  Ke4 {[%clk 0:00:09]} 45. a5 {[%clk 0:00:10]}  Ba6 {[%clk 0:00:03]} 46. Rd6 {[%clk 0:00:10]}  Be2 {[%clk 0:00:03]} 47. a6 {[%clk 0:00:10]}  Nc4 {[%clk 0:00:04]} 48. Nxc4 {[%clk 0:00:09]}  Bxc4 {[%clk 0:00:05]} 49. a7 {[%clk 0:00:09]}  Bd5 {[%clk 0:00:06]} 50. Rxd5 {[%clk 0:00:10]}  Kxd5 {[%clk 0:00:06]} 51. a8=Q+ {[%clk 0:00:10]}  Ke6 {[%clk 0:00:07]} 52. Qe4+ {[%clk 0:00:10]}  Kf7 {[%clk 0:00:08]} 53. Qe7+ {[%clk 0:00:11]}  Kg8 {[%clk 0:00:08]} 54. Bf6 {[%clk 0:00:12]}  g5 {[%clk 0:00:08]} 55. Qg7# {[%clk 0:00:12]} 1-0


[Site "https://www.chess.com"]

[Event "Titled Tuesday Blitz June 6 Late 2023"]
[White "Cardozo Munar, Carlos Eduardo"]
[Black "Roienko, Artur"]
[WhiteFideId "4409477"]
[BlackFideId "14136732"]
[WhiteElo "2067"]
[BlackElo "2062"]
[Result "1-0"]
[Round "8"]
[TimeControl "180+2"]
[Date "2023.06.07"]
[WhiteClock "0:01:48"]
[BlackClock "0:00:10"]
[Board "91"]

1. d4 {[%clk 0:02:54]}  d5 {[%clk 0:02:59]} 2. c3 {[%clk 0:02:54]}  e6 {[%clk 0:03:00]} 3. Nf3 {[%clk 0:02:53]}  Bd6 {[%clk 0:02:59]} 4. g3 {[%clk 0:02:52]}  Nf6 {[%clk 0:03:00]} 5. Bg2 {[%clk 0:02:53]}  O-O {[%clk 0:02:59]} 6. O-O {[%clk 0:02:54]}  b6 {[%clk 0:03:00]} 7. Re1 {[%clk 0:02:55]}  Bb7 {[%clk 0:03:00]} 8. Nbd2 {[%clk 0:02:56]}  Nbd7 {[%clk 0:02:56]} 9. Nf1 {[%clk 0:02:54]}  c5 {[%clk 0:02:53]} 10. h4 {[%clk 0:02:54]}  Rc8 {[%clk 0:02:51]} 11. N1h2 {[%clk 0:02:54]}  Qc7 {[%clk 0:02:48]} 12. Bg5 {[%clk 0:02:54]}  Ne4 {[%clk 0:02:46]} 13. Be3 {[%clk 0:02:53]}  f5 {[%clk 0:02:43]} 14. Bc1 {[%clk 0:02:41]}  Ndf6 {[%clk 0:02:29]} 15. Ng5 {[%clk 0:02:39]}  Rce8 {[%clk 0:02:22]} 16. Nxe4 {[%clk 0:02:39]}  Nxe4 {[%clk 0:02:18]} 17. Nf3 {[%clk 0:02:39]}  Ba6 {[%clk 0:01:26]} 18. Ng5 {[%clk 0:02:32]}  h6 {[%clk 0:01:04]} 19. Nh3 {[%clk 0:02:30]}  Rf6 {[%clk 0:00:52]} 20. Bf4 {[%clk 0:02:30]}  Bxf4 {[%clk 0:00:39]} 21. Nxf4 {[%clk 0:02:30]}  g5 {[%clk 0:00:39]} 22. hxg5 {[%clk 0:02:29]}  hxg5 {[%clk 0:00:40]} 23. Nd3 {[%clk 0:02:29]}  Bxd3 {[%clk 0:00:36]} 24. exd3 {[%clk 0:02:28]}  Nd6 {[%clk 0:00:34]} 25. Qh5 {[%clk 0:02:28]}  Qg7 {[%clk 0:00:28]} 26. dxc5 {[%clk 0:02:20]}  bxc5 {[%clk 0:00:27]} 27. d4 {[%clk 0:02:20]}  Rh6 {[%clk 0:00:26]} 28. Qd1 {[%clk 0:02:13]}  cxd4 {[%clk 0:00:26]} 29. Qxd4 {[%clk 0:02:13]}  Qxd4 {[%clk 0:00:25]} 30. cxd4 {[%clk 0:02:12]}  Rc8 {[%clk 0:00:17]} 31. Rac1 {[%clk 0:02:08]}  Kf7 {[%clk 0:00:17]} 32. Rxc8 {[%clk 0:02:05]}  Nxc8 {[%clk 0:00:18]} 33. Rc1 {[%clk 0:02:06]}  Rh8 {[%clk 0:00:18]} 34. Rc7+ {[%clk 0:02:04]}  Kf6 {[%clk 0:00:18]} 35. b4 {[%clk 0:02:04]}  Rd8 {[%clk 0:00:17]} 36. a4 {[%clk 0:02:04]}  g4 {[%clk 0:00:14]} 37. b5 {[%clk 0:02:04]}  Nb6 {[%clk 0:00:13]} 38. Rxa7 {[%clk 0:02:04]}  Rc8 {[%clk 0:00:13]} 39. a5 {[%clk 0:02:03]}  Rc1+ {[%clk 0:00:13]} 40. Bf1 {[%clk 0:02:03]}  Nc4 {[%clk 0:00:13]} 41. Kg2 {[%clk 0:02:01]}  Nd2 {[%clk 0:00:13]} 42. Be2 {[%clk 0:01:57]}  Ra1 {[%clk 0:00:10]} 43. b6 {[%clk 0:01:57]}  Rb1 {[%clk 0:00:10]} 44. Rc7 {[%clk 0:01:55]}  Nc4 {[%clk 0:00:09]} 45. Bxc4 {[%clk 0:01:54]}  dxc4 {[%clk 0:00:10]} 46. Rxc4 {[%clk 0:01:55]}  Rb5 {[%clk 0:00:10]} 47. Rc5 {[%clk 0:01:54]}  Rb4 {[%clk 0:00:09]} 48. Rc7 {[%clk 0:01:52]}  e5 {[%clk 0:00:09]} 49. dxe5+ {[%clk 0:01:52]}  Kxe5 {[%clk 0:00:09]} 50. b7 {[%clk 0:01:52]}  Kd6 {[%clk 0:00:09]} 51. Rf7 {[%clk 0:01:52]}  Kc6 {[%clk 0:00:10]} 52. a6 {[%clk 0:01:48]} 1-0


[Site "https://www.chess.com"]